bitfinex/quotes_ETHUSD_20241103
["timestamp","ask_amount","ask_price","bid_price","bid_amount"]
[1730611882951,4.08157,2450.1,2449.6,4.08223]
[1730611883268,4.08157,2450.1,2449.7,4.99157102]
[1730611883473,4.08157,2450.1,2449.7,4.08212]
[1730611883837,0.7679,2449.7,2449.6,0.32099746]
[1730611884039,0.7679,2449.7,2449.5,0.20061115]
[1730611884258,4.85005,2449.7,2449.4,0.20061115]
[1730611884580,4.08196,2449.8,2449.4,4.28315115]
[1730611884751,2.47220668,2449.9,2449.6,4.08224]
[1730611885072,6.55368668,2450.1,2449.6,4.0822]
[1730611885307,4.08163,2450.0,2449.6,4.0822]
[1730611885884,5.78593668,2450.0,2449.6,4.0822]
[1730611886267,4.08163,2450.0,2449.6,4.0822]
[1730611886651,4.08163,2450.0,2449.5,4.84249]
[1730611886990,4.08163,2450.0,2449.6,0.2005879]
[1730611887792,5.35832683,2450.0,2449.6,0.2005879]
[1730611887979,0.7679,2449.9,2449.6,0.2005879]
[1730611888549,0.7679,2449.7,2449.6,0.2005879]
[1730611888752,4.85069,2449.3,2449.2,0.26151231]
[1730611889000,8.62454657,2449.3,2449.2,0.0608841]
[1730611889213,9.05147171,2449.3,2449.2,0.0608841]
[1730611889362,6.92023989,2449.3,2449.2,0.0608841]
[1730611889866,8.62280467,2449.3,2449.2,0.0608841]
[1730611890062,8.62277294,2449.3,2449.2,0.0608841]
[1730611890291,6.92023989,2449.3,2449.2,0.0608841]
[1730611890676,8.62277294,2449.3,2449.2,0.0608841]
[1730611891366,6.92023989,2449.3,2449.2,0.0608841]
[1730611892194,11.10645478,2449.3,2449.2,0.0608841]
[1730611892503,11.10645478,2449.3,2449.2,4.1e-06]
[1730611892714,0.7679,2448.5,2448.0,0.8209841]
[1730611892928,4.85204,2448.5,2448.0,5.39644551]
[1730611893271,0.7679,2448.5,2448.0,5.39644551]
[1730611893530,0.7679,2449.0,2448.2,1.17621489]
[1730611893686,4.8509,2449.2,2448.7,0.7601]
[1730611894604,0.7679,2449.2,2448.8,4.0836]
[1730611894812,4.08274,2449.4,2448.9,4.08338]
[1730611895103,4.08267,2449.4,2449.0,4.08327]
[1730611895281,6.02657489,2449.5,2449.0,4.08327]
[1730611895481,6.02657489,2449.5,2449.1,4.88172]
[1730611895482,1.17621489,2449.5,2449.1,4.88172]
[1730611896116,1.17621489,2449.5,2448.9,4.08344]
[1730611896117,1.17621489,2449.3,2448.9,4.08344]
[1730611896320,4.08298,2449.2,2448.8,0.7986]
[1730611897079,4.08388,2448.7,2448.1,4.08464]
[1730611897399,4.08404,2448.6,2448.1,4.08464]
[1730611897704,8.16812,2448.6,2448.1,4.08464]
[1730611897889,4.08404,2448.6,2448.1,4.08464]
[1730611898089,5.01847349,2448.6,2448.1,4.08464]
[1730611898314,9.10253349,2448.6,2448.1,4.08464]
[1730611898524,5.01847349,2448.6,2448.1,4.08464]
[1730611899199,9.10258349,2448.6,2448.1,4.08464]
[1730611899404,5.08480564,2448.5,2448.0,4.9444341]
[1730611900012,4.08449,2448.3,2448.0,0.0608841]
[1730611900213,5.26075489,2448.3,2448.0,0.0608841]
[1730611900615,4.08464,2448.2,2448.0,0.0608841]
[1730611900774,4.08447,2448.3,2448.0,0.0608841]
[1730611900976,5.01896749,2448.3,2448.0,0.0608841]
[1730611901915,4.0848,2448.1,2448.0,0.0608841]
[1730611902261,4.8442,2448.1,2448.0,0.0608841]
[1730611902877,0.7594,2448.1,2448.0,0.0608841]
[1730611903079,0.93449749,2448.3,2448.0,0.0608841]
[1730611903080,0.7594,2448.4,2448.0,4.1458141]
[1730611903332,5.0,2448.5,2448.0,0.47546551]
[1730611903480,5.0,2448.5,2448.0,4.1457941]
[1730611903680,5.0,2448.5,2448.3,4.08435]
[1730611904005,5.0,2448.5,2448.0,4.1457141]
[1730611904006,1.17621489,2448.4,2448.0,4.1457141]
[1730611904207,4.08426,2448.5,2448.0,4.1457141]
[1730611904405,4.08439,2448.4,2448.0,0.0608841]
[1730611904607,4.493009,2448.3,2448.0,0.0608841]
[1730611905606,4.84405,2448.2,2448.0,0.0608841]
[1730611905813,0.7594,2448.2,2448.0,0.0608841]
[1730611906178,4.08431,2448.4,2448.0,0.0608841]
[1730611906787,4.08431,2448.4,2448.0,4.1458141]
[1730611906993,0.7594,2448.5,2448.1,4.08468]
[1730611907844,0.7594,2448.5,2448.0,4.1458341]
[1730611908104,8.9279,2448.5,2448.0,4.1457341]
[1730611908310,4.0848,2448.1,2448.0,0.0608841]
[1730611909207,4.08466,2448.2,2448.0,0.0608841]
[1730611910430,4.8407,2448.1,2448.0,0.0608841]
[1730611915325,7.8407,2448.1,2448.0,0.0608841]
[1730611922050,4.8407,2448.1,2448.0,0.0608841]
[1730611922245,5.88287913,2448.1,2448.0,0.0608841]
[1730611922765,5.12697913,2448.1,2448.0,0.0608841]
[1730611923734,5.88287913,2448.1,2448.0,0.0608841]
[1730611925878,5.12697913,2448.1,2448.0,0.0608841]
[1730611928162,5.94037913,2448.1,2448.0,0.0608841]
[1730611930902,5.94037913,2448.1,2448.0,0.05937736]
[1730611931070,5.12697913,2448.1,2448.0,0.05937736]
[1730611933699,6.30607262,2448.1,2448.0,0.05937736]
[1730611942291,11.27206611,2448.1,2448.0,0.05937736]
[1730611942579,12.98069756,2448.1,2448.0,0.05937736]
[1730611943586,12.98318518,2448.1,2448.0,0.05937736]
[1730611944178,11.79409169,2448.1,2448.0,0.05937736]
[1730611944374,13.39700175,2448.1,2448.0,0.05937736]
[1730611944548,11.27206611,2448.1,2448.0,0.05937736]
[1730611944757,12.21790826,2448.1,2448.0,0.05937736]
[1730611945162,13.39700175,2448.1,2448.0,0.05937736]
[1730611945998,18.39700175,2448.1,2448.0,0.05937736]
[1730611946457,17.21790826,2448.1,2448.0,0.05937736]
[1730611946663,15.09297262,2448.1,2448.0,0.05937736]
[1730611946954,10.09297262,2448.1,2448.0,0.05937736]
[1730611947157,11.27206611,2448.1,2448.0,0.05937736]
[1730611947388,10.09297262,2448.1,2448.0,0.05937736]
[1730611947599,11.27206611,2448.1,2448.0,0.05937736]
[1730611947984,13.82198888,2448.1,2448.0,0.05937736]
[1730611948359,21.99178888,2448.1,2448.0,0.05937736]
[1730611948594,17.47587262,2448.1,2448.0,0.05937736]
[1730611948810,18.13505035,2448.1,2448.0,0.05937736]
[1730611949161,18.13491924,2448.1,2448.0,0.05937736]
[1730611950364,18.56038957,2448.1,2448.0,0.05937736]
[1730611951164,16.43369349,2448.1,2448.0,0.05937736]
[1730611951367,15.56071306,2448.1,2448.0,0.05937736]
[1730611951566,15.13561374,2448.1,2448.0,0.05937736]
[1730611951767,15.56071306,2448.1,2448.0,0.05937736]
[1730611952987,17.61291368,2448.1,2448.0,0.05937736]
[1730611953203,15.48589411,2448.1,2448.0,0.05937736]
[1730611954019,16.27279411,2448.1,2448.0,0.05937736]
[1730611954172,18.8252176,2448.1,2448.0,0.05937736]
[1730611954520,16.27279411,2448.1,2448.0,0.05937736]
[1730611955475,18.8252176,2448.1,2448.0,0.05937736]
[1730611955685,18.82678586,2448.1,2448.0,0.05937736]
[1730611958419,16.27279411,2448.1,2448.0,0.05937736]
[1730611960937,18.82647412,2448.1,2448.0,0.05937736]
[1730611961148,16.27279411,2448.1,2448.0,0.05937736]
[1730611962103,18.82590877,2448.1,2448.0,0.05937736]
[1730611962798,16.27279411,2448.1,2448.0,0.05937736]
[1730611962999,18.82590877,2448.1,2448.0,0.05937736]
[1730611963197,16.27279411,2448.1,2448.0,0.05937736]
[1730611963897,15.48589411,2448.1,2448.0,0.05937736]
[1730611964102,13.43369349,2448.1,2448.0,0.05937736]
[1730611965558,15.98680815,2448.1,2448.0,0.05937736]
[1730611966345,13.43369349,2448.1,2448.0,0.05937736]
[1730611967920,15.98680815,2448.1,2448.0,0.05937736]
[1730611968345,13.43369349,2448.1,2448.0,0.05937736]
[1730611970294,9.87196475,2448.1,2448.0,0.86647736]
[1730611970784,8.1698,2448.1,2448.0,5.8551131]
[1730611974387,1.70216475,2448.6,2448.0,5.0480131]
[1730611974588,1.70214193,2448.6,2448.5,0.7978]
[1730611975089,1.70214193,2448.7,2448.5,0.7978]
[1730611975488,1.70214193,2448.7,2448.5,4.88185]
[1730611975902,2.88123542,2448.7,2448.5,0.7978]
[1730611976307,1.70214193,2448.7,2448.5,0.7978]
[1730611976456,1.70214193,2448.8,2448.5,0.7978]
[1730611977192,1.27614115,2448.7,2448.5,0.7978]
[1730611977951,5.35978115,2448.8,2448.5,0.7978]
[1730611978391,1.27614115,2448.7,2448.5,0.7978]
[1730611978705,5.35978115,2448.8,2448.5,0.7978]
[1730611979356,1.27614115,2448.7,2448.5,0.7978]
[1730611979558,5.35978115,2448.8,2448.5,0.7978]
[1730611981556,1.27614115,2448.8,2448.5,0.7978]
[1730611981973,5.26256349,2448.9,2448.5,0.7978]
[1730611981974,5.35961115,2448.9,2448.5,0.7978]
[1730611982273,5.35961115,2448.9,2448.5,5.370111]
[1730611982274,1.27614115,2448.9,2448.5,5.370111]
[1730611982476,1.27614115,2448.9,2448.6,0.7978]
[1730611983301,1.27614115,2449.0,2448.6,4.88174]
[1730611983659,1.27614115,2449.0,2448.5,0.488201]
[1730611983660,1.27614115,2449.0,2448.8,4.88143]
[1730611983866,1.70214193,2449.1,2448.8,4.88143]
[1730611983867,1.27614115,2449.1,2448.8,4.88143]
[1730611984097,5.35913115,2449.2,2448.8,5.369573]
[1730611984306,1.27614115,2449.4,2449.3,4.08279]
[1730611984509,1.27614115,2449.7,2449.4,0.7978]
[1730611984803,5.35802115,2449.9,2449.4,0.7978]
[1730611985000,1.27614115,2449.8,2449.4,0.7978]
[1730611985205,5.35802115,2449.9,2449.4,4.88034]
[1730611985361,1.27614115,2450.0,2449.4,4.88034]
[1730611985561,5.35770115,2450.1,2449.6,4.08227]
[1730611985762,6.88162756,2450.1,2449.6,4.08227]
[1730611986000,6.88162756,2450.1,2449.6,4.0822]
[1730611986361,5.60548641,2450.1,2449.5,4.08246]
[1730611986561,4.08166,2450.0,2449.5,4.08246]
[1730611986802,5.60548641,2450.1,2449.4,4.88033]
[1730611987006,5.60548641,2450.1,2449.6,4.08228]
[1730611987374,9.68703641,2450.1,2449.6,4.08228]
[1730611988111,4.08164,2450.0,2449.6,4.08228]
[1730611988406,4.27614115,2450.4,2449.7,0.8115]
[1730611988722,4.08166,2450.0,2449.7,0.8115]
[1730611989079,8.16342,2450.0,2449.7,0.8115]
[1730611989429,4.08166,2450.0,2449.7,0.8115]
[1730611989712,0.816308,2450.0,2449.4,0.8115]
[1730611989875,4.08239,2449.6,2449.2,0.8115]
[1730611990076,0.7644,2449.6,2448.9,0.8115]
[1730611990326,4.08279,2449.3,2448.9,0.8115]
[1730611990472,4.08306,2449.2,2448.9,0.8115]
[1730611991633,4.0828,2449.3,2448.9,0.8115]
[1730611995744,4.08255,2449.5,2449.0,4.08324]
[1730611996205,5.22327,2449.6,2448.9,4.8948]
[1730611996396,4.08265,2449.4,2448.9,4.8948]
[1730611996601,4.08265,2449.4,2448.9,8.97818]
[1730611997317,4.08265,2449.4,2448.9,8.97817]
[1730611997817,4.08265,2449.4,2448.9,4.8948]
[1730611998017,4.08265,2449.4,2448.9,9.876016]
[1730611998644,4.08243,2449.6,2449.0,4.89464]
[1730611998940,4.0824,2449.6,2449.1,4.08305]
[1730611999363,4.08204,2449.8,2449.3,4.08272]
[1730611999593,4.08204,2449.8,2449.4,4.08262]
[1730611999748,4.08221,2449.7,2449.2,4.89445]
[1730612002284,0.7961,2450.0,2449.2,0.8115]
[1730612002468,4.08272,2449.4,2448.9,4.08335]
[1730612002992,4.08272,2449.4,2448.9,8.16674]
[1730612003354,4.08272,2449.4,2449.0,4.08327]
[1730612003959,8.96128,2449.5,2449.0,4.08327]
[1730612004183,8.96122,2449.5,2449.0,4.08327]
[1730612004492,4.87866,2449.5,2449.0,4.08327]
[1730612008039,8.96128,2449.5,2449.0,4.08327]
[1730612008932,4.87866,2449.5,2449.0,4.08327]
[1730612009521,8.96128,2449.5,2449.0,4.08327]
[1730612010497,4.87866,2449.5,2449.0,4.08327]
[1730612011004,4.87866,2449.5,2449.1,0.8246]
[1730612015119,4.08256,2449.5,2449.1,4.90767]
[1730612020659,5.35870115,2449.5,2449.1,4.90767]
[1730612021262,4.08263,2449.4,2449.1,0.8246]
[1730612023289,5.35877115,2449.4,2449.1,0.8246]
[1730612025505,1.27614115,2449.4,2449.1,0.8246]
[1730612025701,1.27614115,2449.3,2449.1,0.8246]
[1730612026405,1.27614115,2449.3,2449.1,1.723709]
[1730612026566,1.27614115,2449.4,2449.1,5.806719]
[1730612027365,1.27614115,2449.3,2449.1,5.806719]
[1730612027562,1.27614115,2449.3,2449.1,9.889769]
[1730612027760,1.27614115,2449.3,2449.1,5.806719]
[1730612029123,1.27614115,2449.3,2449.1,9.889769]
[1730612029638,1.27614115,2449.2,2449.1,5.806719]
[1730612029929,1.27614115,2449.3,2449.1,5.806719]
[1730612031195,1.27614115,2449.3,2449.1,1.723709]
[1730612031396,1.27614115,2449.2,2449.1,1.723709]
[1730612031942,1.27614115,2449.2,2449.1,5.806839]
[1730612032159,1.27614115,2449.3,2449.1,5.806839]
[1730612032368,1.27614115,2449.2,2449.1,5.806839]
[1730612032655,1.27614115,2449.2,2449.1,1.723709]
[1730612033643,1.12714688,2449.2,2449.1,1.723709]
[1730612033950,1.70214193,2449.9,2449.7,0.7836]
[1730612034158,1.70214193,2450.1,2450.0,4.08163]
[1730612034356,2.1295542,2450.2,2450.0,4.08163]
[1730612034357,1.70214193,2450.2,2450.0,4.86523]
[1730612034923,1.70214193,2450.3,2450.0,4.86523]
[1730612036554,6.2102042,2450.6,2450.2,4.08128]
[1730612036724,6.20888118,2450.6,2450.2,4.08128]
[1730612036931,6.20888118,2450.6,2450.0,1.79603148]
[1730612037159,6.20888118,2450.6,2450.0,0.7836]
[1730612037363,6.20888118,2450.6,2450.1,4.08145]
[1730612037965,10.28965118,2450.6,2450.1,4.08145]
[1730612038265,10.28965118,2450.6,2450.1,8.16282]
[1730612038266,4.08065,2450.6,2450.1,8.16282]
[1730612038471,4.08065,2450.6,2450.2,4.08129]
[1730612038832,2.12823118,2450.8,2450.4,4.08094]
[1730612039032,2.12823118,2450.8,2450.5,4.08078]
[1730612039253,4.08017,2450.9,2450.5,4.08078]
[1730612039831,7.02241118,2451.0,2450.5,4.08078]
[1730612040060,8.50575252,2451.0,2450.5,4.08078]
[1730612040375,4.08013,2450.9,2450.4,4.08086]
[1730612040846,4.08013,2450.9,2450.4,8.16174]
[1730612041048,4.08013,2450.9,2450.5,4.08078]
[1730612041248,4.08013,2450.9,2450.4,4.08086]
[1730612041477,4.08013,2450.9,2450.4,8.16173]
[1730612041975,4.08013,2450.9,2450.4,4.08086]
[1730612042275,4.08015,2450.9,2450.4,4.73368438]
[1730612042478,4.08054,2450.7,2450.3,0.7836]
[1730612043286,4.08045,2450.8,2450.1,0.7836]
[1730612043287,0.8142,2450.6,2450.1,0.7836]
[1730612043500,4.89551,2450.2,2449.7,4.08213]
[1730612043772,4.08147,2450.1,2449.7,4.08213]
[1730612044142,4.89551,2450.2,2449.7,4.08213]
[1730612044473,4.89551,2450.2,2449.7,8.16416]
[1730612044782,4.89551,2450.2,2449.8,4.08196]
[1730612045359,4.89551,2450.2,2449.7,4.08203]
[1730612045557,4.89551,2450.2,2449.7,4.568593]
[1730612045756,4.89551,2450.2,2449.8,4.0819]
[1730612045952,0.8142,2450.2,2449.8,8.1638]
[1730612046175,0.8142,2450.2,2449.8,4.0819]
[1730612046559,4.08114,2450.3,2449.8,4.0819]
[1730612046959,4.08131,2450.2,2449.8,4.0819]
[1730612047490,4.08131,2450.2,2449.7,4.568673]
[1730612047640,8.16273,2450.2,2449.7,4.568673]
[1730612047845,4.08153,2450.1,2449.7,0.486563]
[1730612048851,0.7659,2450.4,2449.6,0.7836]
[1730612048852,4.08175,2450.0,2449.6,0.7836]
[1730612049045,4.08175,2450.0,2449.2,8.0718529]
[1730612049046,4.08223,2449.7,2449.2,4.08284]
[1730612049954,4.08223,2449.7,2449.2,8.1657]
[1730612050160,4.08223,2449.7,2449.2,4.08284]
[1730612051204,4.08223,2449.7,2449.2,4.8713574]
[1730612052062,4.08223,2449.7,2449.2,8.9542474]
[1730612052707,4.08223,2449.7,2449.2,4.8713574]
[1730612052914,4.08223,2449.7,2449.2,8.9542174]
[1730612053269,4.08223,2449.7,2449.2,4.8713574]
[1730612053674,4.08223,2449.7,2449.2,8.9542274]
[1730612054099,4.08223,2449.7,2449.2,4.8713574]
[1730612055114,4.08237,2449.6,2449.2,4.8713574]
[1730612055815,4.08223,2449.7,2449.2,4.8713574]
[1730612056285,4.08223,2449.7,2448.8,0.7899]
[1730612056286,0.7659,2449.6,2448.8,0.7899]
[1730612056490,4.84896,2449.2,2448.8,0.7899]
[1730612056816,4.08325,2449.1,2448.6,4.87373]
[1730612057173,0.7659,2449.2,2448.3,0.7899]
[1730612057174,4.08356,2448.9,2448.3,0.7899]
[1730612057375,4.08356,2448.9,2448.3,5.63495208]
[1730612057376,4.84964,2448.8,2448.3,5.63495208]
[1730612060250,4.84964,2448.8,2448.0,0.05937736]
[1730612060251,4.08397,2448.6,2448.0,0.05937736]
[1730612060549,3.7659,2448.8,2448.0,0.05937736]
[1730612060550,8.16837,2448.5,2448.0,4.14432736]
[1730612060752,8.16836,2448.5,2448.0,4.14432736]
[1730612060909,4.08415,2448.5,2448.0,4.14432736]
[1730612061247,8.16841,2448.5,2448.0,4.14432736]
[1730612062283,4.08436,2448.4,2448.0,0.9589301]
[1730612062409,0.8184,2448.3,2448.0,0.05937736]
[1730612064019,4.0848,2448.1,2448.0,0.05937736]
[1730612064467,4.08473,2448.2,2448.0,0.05937736]
[1730612064760,4.0848,2448.1,2448.0,0.05937736]
[1730612068349,8.801993,2448.1,2448.0,0.05937736]
[1730612074824,8.801993,2448.1,2447.0,0.005]
[1730612074825,4.08646,2447.1,2447.0,0.005]
[1730612077001,8.99117,2447.2,2447.0,0.005]
[1730612078002,4.08646,2447.1,2447.0,0.005]
[1730612078202,4.08632,2447.2,2447.0,0.005]
[1730612078570,4.08604,2447.4,2447.0,0.005]
[1730612078805,4.08581,2447.5,2447.1,0.7662]
[1730612079014,4.08574,2447.6,2447.1,0.7662]
[1730612079168,8.17148,2447.6,2447.1,0.7662]
[1730612079368,4.08574,2447.6,2447.1,0.7662]
[1730612079569,8.17148,2447.6,2447.1,0.7662]
[1730612079868,4.08574,2447.6,2447.1,5.747083]
[1730612080070,4.0853,2447.8,2447.2,4.16800476]
[1730612080270,4.0853,2447.8,2447.2,4.16793476]
[1730612080470,4.0853,2447.8,2447.3,4.08608]
[1730612081140,2.73190076,2447.9,2447.1,0.7662]
[1730612081432,2.73190076,2447.9,2447.1,1.252]
[1730612081433,4.08573,2447.6,2447.1,1.252]
[1730612081801,4.08542,2447.8,2447.1,1.252]
[1730612081998,4.0855,2447.7,2447.1,1.252]
[1730612082836,4.08572,2447.6,2447.1,1.252]
[1730612082995,4.08581,2447.5,2447.1,1.252]
[1730612083998,4.08607,2447.4,2447.1,1.252]
[1730612084238,4.08607,2447.4,2447.1,0.7662]
[1730612085112,4.08623,2447.3,2447.1,0.7662]
[1730612086404,4.08564,2447.6,2447.1,0.7662]
[1730612086636,8.17136,2447.6,2447.1,0.7662]
[1730612086845,4.08564,2447.6,2447.2,0.485772]
[1730612087003,8.17138,2447.6,2447.2,0.485772]
[1730612087445,2.73190076,2447.9,2447.2,4.65368179]
[1730612087446,4.08525,2447.9,2447.2,4.65368179]
[1730612087608,4.08565,2447.6,2447.3,0.7662]
[1730612089943,4.08548,2447.7,2447.3,0.7662]
[1730612090138,4.08541,2447.8,2447.3,1.3000252]
[1730612090446,4.08564,2447.6,2447.3,1.3000252]
[1730612090631,4.08541,2447.8,2447.3,1.3000252]
[1730612090804,4.08548,2447.7,2447.3,0.7662]
[1730612094950,0.8184,2448.0,2447.5,0.7966]
[1730612094951,4.08513,2447.9,2447.5,0.7966]
[1730612103764,4.08507,2448.0,2447.5,4.88239]
[1730612104058,8.17013,2448.0,2447.6,0.7966]
[1730612104235,4.08506,2448.0,2447.6,1.693425]
[1730612105468,8.17017,2448.0,2447.6,1.693425]
[1730612105629,4.08506,2448.0,2447.6,1.693425]
[1730612106428,8.17014,2448.0,2447.6,1.693425]
[1730612106865,4.08506,2448.0,2447.6,1.693425]
[1730612107323,4.08506,2448.0,2447.7,0.5779125]
[1730612108696,8.17014,2448.0,2447.7,0.5779125]
[1730612110962,4.08506,2448.0,2447.7,0.5779125]
[1730612111466,8.17015,2448.0,2447.7,0.5779125]
[1730612111856,4.08506,2448.0,2447.7,0.5779125]
[1730612112167,8.17015,2448.0,2447.7,0.5779125]
[1730612112395,4.08439,2448.4,2447.8,0.90930277]
[1730612112542,2.875554,2448.5,2447.5,1.18881373]
[1730612112543,1.17881373,2448.5,2447.9,4.91273]
[1730612112730,1.17881373,2448.5,2448.0,0.491273]
[1730612113454,4.08431,2448.4,2448.0,0.491273]
[1730612113670,4.08431,2448.4,2448.0,4.576103]
[1730612113966,8.16858,2448.5,2448.0,4.576103]
[1730612114172,4.0843,2448.4,2448.0,4.576103]
[1730612114354,4.0843,2448.4,2448.1,0.8276]
[1730612115060,2.52134027,2448.7,2448.1,5.53435838]
[1730612115061,4.08389,2448.7,2448.1,5.53435838]
[1730612115267,4.08389,2448.7,2448.3,0.8276]
[1730612116639,7.64395446,2448.9,2448.4,0.08168055]
[1730612116640,6.81935446,2448.9,2448.4,0.08168055]
[1730612116841,4.08358,2448.9,2448.6,0.8276]
[1730612118411,4.0837,2448.8,2448.6,0.8276]
[1730612118784,4.08317,2449.1,2448.6,0.8276]
[1730612118930,4.08317,2449.1,2448.7,0.08166645]
[1730612119295,4.08317,2449.1,2448.6,4.91146]
[1730612119493,4.08317,2449.1,2448.6,5.86094001]
[1730612120034,8.16639,2449.1,2448.6,5.86094001]
[1730612120613,4.08317,2449.1,2448.6,5.86094001]
[1730612121244,8.16639,2449.1,2448.6,5.86094001]
[1730612121397,4.08317,2449.1,2448.6,5.86094001]
[1730612121593,8.16639,2449.1,2448.7,0.994491]
[1730612121793,4.08317,2449.1,2448.7,0.994491]
[1730612122240,4.08317,2449.1,2448.7,1.07615748]
[1730612122895,4.08317,2449.1,2448.8,0.7997]
[1730612123531,2.73577446,2449.2,2448.9,4.08336]
[1730612123838,2.73577446,2449.2,2448.9,5.0794851]
[1730612125042,4.08293,2449.3,2448.9,5.0794851]
[1730612125814,6.81834446,2449.5,2449.0,0.7997]
[1730612126014,6.81834446,2449.5,2449.0,4.88297]
[1730612126203,4.08266,2449.4,2449.0,4.88297]
[1730612126402,6.81825446,2449.5,2449.1,4.571387]
[1730612126910,6.81825446,2449.5,2449.1,0.488297]
[1730612127638,4.08224,2449.7,2449.2,4.96420449]
[1730612128241,8.16448,2449.7,2449.2,4.96420449]
[1730612128543,4.08224,2449.7,2449.2,4.96420449]
[1730612128702,4.08224,2449.7,2449.2,5.91775864]
[1730612130961,4.69674027,2450.3,2449.2,5.91775864]
[1730612130962,4.08079,2450.5,2449.8,4.88163]
[1730612131116,4.08079,2450.5,2450.0,4.0816]
[1730612131117,4.08088,2450.5,2450.0,4.0816]
[1730612131322,4.08088,2450.5,2450.0,4.08154]
[1730612131656,4.08088,2450.5,2450.0,8.651214]
[1730612132030,4.08064,2450.6,2450.1,4.08144]
[1730612132232,1.69674027,2451.3,2450.4,0.7997]
[1730612132445,4.8519425,2451.4,2450.4,0.881309]
[1730612132446,4.87697,2451.0,2450.4,0.881309]
[1730612132749,4.87697,2451.0,2450.5,4.08071]
[1730612132926,0.797,2451.0,2450.5,4.08071]
[1730612133134,4.87705,2451.0,2450.5,4.57691189]
[1730612134758,4.87699,2451.0,2450.5,4.57691189]
[1730612135118,4.07999,2451.0,2450.5,4.57691189]
[1730612136642,4.0798,2451.1,2450.5,4.57691189]
[1730612137056,4.0801,2451.0,2450.5,4.57691189]
[1730612137261,4.0801,2451.0,2450.6,0.53766119]
[1730612138066,4.0801,2451.0,2450.6,4.61828119]
[1730612138532,4.0801,2451.0,2450.6,0.53766119]
[1730612138929,4.08025,2450.9,2450.6,0.53766119]
[1730612139131,3.53277446,2450.8,2450.1,0.7997]
[1730612139453,4.0815,2450.1,2449.6,4.88199]
[1730612139772,4.08118,2450.3,2449.6,0.7997]
[1730612139952,4.08131,2450.2,2449.7,4.08204]
[1730612140135,4.08146,2450.1,2449.8,0.488174]
[1730612140457,4.08118,2450.3,2449.8,0.488174]
[1730612140659,4.08133,2450.2,2449.8,0.488174]
[1730612141389,4.08147,2450.1,2449.8,0.488174]
[1730612142168,4.08131,2450.2,2449.8,0.488174]
[1730612142477,4.08118,2450.3,2449.8,4.570104]
[1730612142627,4.08118,2450.3,2449.9,0.8652144]
[1730612142823,8.16246,2450.3,2449.9,0.8652144]
[1730612143268,4.08147,2450.1,2449.8,0.488174]
[1730612143476,4.08174,2450.0,2449.6,0.7997]
[1730612145146,4.08222,2449.7,2449.3,0.7997]
[1730612145343,8.16445,2449.7,2449.3,0.7997]
[1730612145737,4.08222,2449.7,2449.3,0.7997]
[1730612146449,4.87889,2449.9,2449.3,1.696253]
[1730612146745,4.08157,2450.1,2449.6,4.08229]
[1730612146969,0.797,2450.2,2449.6,4.16392957]
[1730612147134,4.08123,2450.3,2449.8,4.08189]
[1730612148780,8.16252,2450.3,2449.8,4.08189]
[1730612148944,8.16252,2450.3,2449.7,5.29822296]
[1730612148945,4.08123,2450.3,2449.9,4.08178]
[1730612149273,4.08097,2450.4,2449.9,4.08179]
[1730612149446,4.08097,2450.4,2450.0,0.408179]
[1730612149862,4.08114,2450.3,2450.0,0.408179]
[1730612150052,4.08114,2450.3,2449.8,4.08195]
[1730612151372,4.08092,2450.5,2449.7,1.21609296]
[1730612151573,4.08092,2450.5,2450.0,4.08161]
[1730612151794,4.08092,2450.5,2449.8,4.08196]
[1730612151940,4.0811,2450.4,2449.8,4.08184]
[1730612152341,4.0811,2450.4,2449.9,4.08178]
[1730612152651,4.08115,2450.3,2449.9,4.08178]
[1730612152847,4.08104,2450.4,2449.9,9.059831]
[1730612153381,4.08104,2450.4,2449.9,4.978051]
[1730612153888,4.08104,2450.4,2449.9,0.896361]
[1730612153889,4.08116,2450.3,2449.9,0.896361]
[1730612154081,4.08113,2450.3,2449.9,0.896361]
[1730612155380,4.08104,2450.4,2449.9,0.896361]
[1730612155545,4.08104,2450.4,2449.9,8.1634]
[1730612155976,4.08104,2450.4,2449.9,4.08169]
[1730612156287,4.08104,2450.4,2449.7,4.88173]
[1730612156288,4.08125,2450.3,2449.8,4.08195]
[1730612158991,4.08104,2450.4,2449.8,4.08186]
[1730612159277,4.08104,2450.4,2449.9,4.569846]
[1730612160395,4.08087,2450.5,2450.1,0.7912]
[1730612161082,4.08097,2450.4,2450.1,0.7912]
[1730612162361,4.08124,2450.3,2450.1,0.7912]
[1730612162557,4.08097,2450.4,2450.1,0.7912]
[1730612162758,4.08114,2450.3,2450.1,0.7912]
[1730612163570,4.08098,2450.4,2450.1,0.7912]
[1730612164264,4.08117,2450.3,2450.1,0.7912]
[1730612164991,4.08162,2450.1,2449.9,0.7912]
[1730612165198,1.648715,2450.3,2449.6,0.8223]
[1730612165367,4.08188,2449.9,2449.6,0.8223]
[1730612165771,4.08213,2449.7,2449.6,0.8223]
[1730612165958,4.08213,2449.7,2449.3,0.8223]
[1730612166163,4.08239,2449.6,2449.3,0.8223]
[1730612166364,4.08239,2449.6,2449.1,4.90534]
[1730612166564,4.08239,2449.6,2449.2,4.08296]
[1730612167370,4.08239,2449.6,2449.1,1.721153]
[1730612167594,4.08239,2449.6,2449.1,5.804263]
[1730612167764,4.08239,2449.6,2449.2,4.08292]
[1730612172604,4.08239,2449.6,2449.2,4.16456941]
[1730612172957,4.08239,2449.6,2449.2,5.16145265]
[1730612181523,4.08249,2449.5,2449.2,0.99688324]
[1730612181749,4.08249,2449.5,2449.1,4.90541]
[1730612182173,4.08229,2449.7,2449.2,4.08293]
[1730612182375,4.08234,2449.6,2449.2,4.08293]
[1730612184430,0.8325,2449.9,2448.9,8.97616]
[1730612184431,4.87948,2449.5,2448.9,8.97616]
[1730612184671,4.08292,2449.3,2448.9,4.89282]
[1730612184827,4.08264,2449.4,2448.9,8.97618]
[1730612185032,0.797,2449.5,2449.0,4.980878]
[1730612185371,4.08238,2449.6,2449.1,4.08303]